fUSD/lending_fUSD_20260421
["ID","MTS","AMOUNT","RATE_DAILY","PERIOD"]
[420895842,1776703148659,-438.74626619,0.000349,120]
[420895843,1776703148716,-236.969834,0.000349,120]
[420895844,1776703148771,-329.5741729,0.000349,120]
[420895845,1776703148827,-157.0,0.00034979,30]
[420895846,1776703148883,-286.0,0.00034979,30]
[420895847,1776703148940,-1596.0,0.00034979,30]
[420895848,1776703149003,-630.0,0.00034992,30]
[420895849,1776703149060,-2467.0,0.00034993,30]
[420895850,1776703149116,-414.0,0.00034993,30]
[420895851,1776703149172,-281.0,0.00034993,30]
[420895852,1776703149229,-1933.0,0.00034993,30]
[420895853,1776703149285,-556.0,0.00034993,30]
[420895854,1776703149342,-587.0,0.00034993,30]
[420895855,1776703149399,-164.0,0.000351,120]
[420895856,1776703149454,-500.0,0.0003519,120]
[420895857,1776703149510,-1028.66,0.0003525,120]
[420895858,1776703149569,-228.0,0.00035616,30]
[420895859,1776703149626,-260.0,0.00035855,39]
[420895860,1776703149686,-166.0,0.00035856,120]
[420895861,1776703149745,-218.32453686,0.000359,120]
[420895862,1776703149801,-466.032182,0.000359,120]
[420895863,1776703149857,-438.74626619,0.000359,120]
[420895864,1776703149912,-236.969834,0.000359,120]
[420895865,1776703149967,-329.5741729,0.000359,120]
[420895866,1776703150023,-157.43665941,0.00035979,30]
[420895867,1776703150077,-286.0,0.00035979,30]
[420895868,1776703150132,-1596.0,0.00035979,30]
[420895869,1776703150188,-630.0,0.00035992,30]
[420895870,1776703150245,-2467.0,0.00035993,30]
[420895871,1776703150300,-414.0,0.00035993,30]
[420895872,1776703150356,-281.0,0.00035993,30]
[420895873,1776703150411,-1933.0,0.00035993,30]
[420895874,1776703150463,-556.0,0.00035993,30]
[420895875,1776703150518,-587.0,0.00035993,30]
[420895876,1776703150574,-1028.66,0.00036,120]
[420895877,1776703150632,-318.986,0.00036069,44]
[420895878,1776703150687,-4137.688,0.00036069,44]
[420895879,1776703150742,-160.45951087,0.00036301,30]
[420895880,1776703150797,-500.0,0.00036368,120]
[420895881,1776703150852,-260.0,0.00036743,42]
[420895882,1776703150908,-1028.66,0.0003675,120]
[420895883,1776703150965,-286.0,0.00036979,30]
[420895884,1776703151020,-1596.0,0.00036979,30]
[420895885,1776703151075,-630.0,0.00036992,30]
[420895886,1776703151129,-2467.0,0.00036993,30]
[420895887,1776703151182,-414.0,0.00036993,30]
[420895888,1776703151235,-281.0,0.00036993,30]
[420895889,1776703151290,-1933.0,0.00036993,30]
[420895890,1776703151346,-556.0,0.00036993,30]
[420895891,1776703151404,-587.0,0.00036993,30]
[420895892,1776703151461,-218.32453686,0.00037,120]
[420895893,1776703151518,-466.032182,0.00037,120]
[420895894,1776703152006,-438.74626619,0.00037,120]
[420895895,1776703152059,-236.969834,0.00037,120]
[420895896,1776703152113,-329.5741729,0.00037,120]
[420895897,1776703152169,-164.0,0.0003726,30]
[420895898,1776703152222,-500.0,0.00037466,40]
[420895899,1776703152275,-1028.66,0.000375,120]
[420895900,1776703152326,-260.0,0.00037528,45]
[420895901,1776703152379,-166.0,0.00037974,30]
[420895902,1776703152431,-286.0,0.00037979,30]
[420895903,1776703152483,-1596.0,0.00037979,30]
[420895904,1776703152537,-630.0,0.00037992,30]
[420895905,1776703152591,-2467.0,0.00037993,30]
[420895906,1776703152650,-414.0,0.00037993,30]
[420895907,1776703152705,-281.0,0.00037993,30]
[420895908,1776703152759,-1933.0,0.00037993,30]
[420895909,1776703152813,-556.0,0.00037993,30]
[420895910,1776703152866,-587.0,0.00037993,30]
[420895911,1776703152919,-386.69,0.00038034,30]
[420895912,1776703152973,-150.0,0.00038034,30]
[420895913,1776703153025,-918.14,0.00038034,30]
[420895914,1776703153078,-339.3,0.00038034,30]
[420895915,1776703153132,-218.37,0.00038034,30]
[420895916,1776703153188,-260.0,0.00038222,49]
[420895917,1776703153241,-179.09439278,0.0003839,30]
[420895918,1776703153293,-179.09439278,0.000384,120]
[420895919,1776703153345,-500.0,0.0003859,46]
[420895920,1776703153397,-489.124159,0.00038685,30]
[420895921,1776703153450,-489.124159,0.00038685,30]
[420895922,1776703153503,-489.124159,0.00038685,30]
[420895923,1776703153556,-489.124159,0.00038685,30]
[420895924,1776703153611,-489.124159,0.00038685,30]
[420895925,1776703153666,-489.124159,0.00038685,30]
[420895926,1776703153719,-489.124159,0.00038685,30]
[420895927,1776703153770,-489.124159,0.00038685,30]
[420895928,1776703153824,-500.0,0.000387,120]
[420895929,1776703153877,-500.0,0.000387,120]
[420895930,1776703153931,-500.0,0.000387,120]
[420895931,1776703153986,-500.0,0.000387,120]
[420895932,1776703154040,-500.0,0.000387,120]
[420895933,1776703154094,-500.0,0.000387,120]
[420895934,1776703154148,-500.0,0.000387,120]
[420895935,1776703154202,-500.0,0.000387,120]
[420895936,1776703154255,-260.0,0.00038835,54]
[420895937,1776703154306,-600.19413275,0.00039041,60]
[420895938,1776703154358,-197.73,0.0003915,30]
[420895939,1776703154410,-182.79,0.0003915,30]
[420895940,1776703154462,-164.0,0.0003921,120]
[420895941,1776703154514,-260.0,0.00039377,60]
[420895942,1776703154574,-151.0,0.000395,30]
[420895943,1776703154674,-787.383514,0.00039531,30]
[420895944,1776703154729,-151.0,0.00039531,120]
[420895945,1776703154783,-787.383514,0.00039531,30]
[420895946,1776703154838,-259.821371,0.00039531,120]
[420895947,1776703154890,-787.383514,0.00039531,30]
[420895948,1776703154943,-774.144536,0.00039531,30]
[420895949,1776703154995,-787.383514,0.00039531,30]
[420895950,1776703155047,-774.144536,0.00039531,30]
[420895951,1776703155101,-323.604907,0.00039531,30]
[420895952,1776703155154,-3434.267972,0.00039531,30]
[420895953,1776703155206,-774.144536,0.00039531,30]
[420895954,1776703155259,-3434.267972,0.00039531,30]
[420895955,1776703155310,-774.144536,0.00039531,30]
[420895956,1776703155361,-3434.267972,0.00039531,30]
[420895957,1776703155415,-3434.267972,0.00039531,30]
[420895958,1776703155469,-323.604907,0.00039531,30]
[420895959,1776703155523,-323.604907,0.00039531,30]
[420895960,1776703155577,-323.604907,0.00039531,30]
[420895961,1776703155632,-344.153933,0.00039531,30]
[420895962,1776703155685,-208.001067,0.00039531,30]
[420895963,1776703155737,-208.001067,0.00039531,30]
[420895964,1776703155788,-344.153933,0.00039531,30]
[420895965,1776703155840,-208.001067,0.00039531,30]
[420895966,1776703155892,-208.001067,0.00039531,30]
[420895967,1776703155944,-344.153933,0.00039531,30]
[420895968,1776703155997,-344.153933,0.00039531,30]
[420895969,1776703156049,-328.485109,0.00039531,30]
[420895970,1776703156099,-328.485109,0.00039531,30]
[420895971,1776703156150,-328.485109,0.00039531,30]
[420895972,1776703156203,-328.485109,0.00039531,30]
[420895973,1776703156254,-151.0,0.00039533,30]
[420895974,1776703156305,-151.0,0.00039533,30]
[420895975,1776703156355,-151.0,0.00039533,30]
[420895976,1776703156405,-238.239931,0.00039533,30]
[420895977,1776703156456,-238.239931,0.00039533,30]
[420895978,1776703156508,-238.239931,0.00039533,30]
[420895979,1776703156565,-238.239931,0.00039533,30]
[420895980,1776703156620,-151.0,0.00039533,30]
[420895981,1776703156675,-151.0,0.00039533,30]
[420895982,1776703156728,-151.0,0.00039533,30]
[420895983,1776703156780,-151.0,0.00039533,30]
[420895984,1776703156832,-151.0,0.00039533,30]
[420895985,1776703156885,-286.507404,0.00039533,30]
[420895986,1776703156937,-151.0,0.00039533,30]
[420895987,1776703156988,-164.235707,0.00039533,30]
[420895988,1776703157039,-151.0,0.00039533,30]
[420895989,1776703157091,-151.0,0.00039533,30]
[420895990,1776703157140,-2507.373751,0.00039533,30]
[420895991,1776703157191,-2507.373751,0.00039533,30]
[420895992,1776703157241,-2507.373751,0.00039533,30]
[420895993,1776703157293,-2507.373751,0.00039533,30]
[420895994,1776703157344,-315.842369,0.00039533,30]
[420895995,1776703157715,-315.842369,0.00039533,30]
[420895996,1776703157769,-315.842369,0.00039533,30]
[420895997,1776703157823,-315.842369,0.00039533,30]
[420895998,1776703157876,-151.0,0.00039533,30]
[420895999,1776703157929,-151.0,0.00039533,30]
[420896000,1776703157984,-775.518164,0.00039533,30]
[420896001,1776703158038,-775.518164,0.00039533,30]
[420896002,1776703158092,-775.518164,0.00039533,30]
[420896003,1776703158145,-775.518164,0.00039533,30]
[420896004,1776703158198,-5262.406877,0.00039533,30]
[420896005,1776703158251,-5262.406877,0.00039533,30]
[420896006,1776703158304,-5262.406877,0.00039533,30]
[420896007,1776703158357,-5262.406877,0.00039533,30]
[420896008,1776703158410,-236.549017,0.00039533,30]
[420896009,1776703158464,-151.0,0.00039533,30]
[420896010,1776703158518,-236.549017,0.00039533,30]
[420896011,1776703158573,-236.549017,0.00039533,30]
[420896012,1776703158629,-236.549017,0.00039533,30]
[420896013,1776703158682,-1760.236674,0.00039533,30]
[420896014,1776703158731,-1760.236674,0.00039533,30]
[420896015,1776703158783,-3140.080694,0.00039533,30]
[420896016,1776703158834,-1760.236674,0.00039533,30]
[420896017,1776703158886,-151.0,0.00039533,30]
[420896018,1776703158940,-3140.080694,0.00039533,30]
[420896019,1776703158992,-1760.236674,0.00039533,30]
[420896020,1776703159045,-151.0,0.00039533,30]
[420896021,1776703159096,-3140.080694,0.00039533,30]
[420896022,1776703159147,-209.347582,0.00039533,30]
[420896023,1776703159200,-3140.080694,0.00039533,30]
[420896024,1776703159252,-269.022574,0.00039533,30]
[420896025,1776703159304,-269.022574,0.00039533,30]
[420896026,1776703159354,-799.498945,0.00039533,30]
[420896027,1776703159405,-269.022574,0.00039533,30]
[420896028,1776703159457,-606.794861,0.00039533,30]
[420896029,1776703159508,-799.498945,0.00039533,30]
[420896030,1776703159561,-269.022574,0.00039533,30]
[420896031,1776703159614,-606.794861,0.00039533,30]
[420896032,1776703159667,-799.498945,0.00039533,30]
[420896033,1776703159722,-606.794861,0.00039533,30]
[420896034,1776703159773,-799.498945,0.00039533,30]
[420896035,1776703159827,-606.794861,0.00039533,30]
[420896036,1776703159878,-151.0,0.00039537,30]
[420896037,1776703159931,-173.890299,0.00039537,30]
[420896038,1776703159985,-489.124159,0.00039537,30]
[420896039,1776703160038,-868.969298,0.00039537,30]
[420896040,1776703160089,-489.124159,0.00039537,30]
[420896041,1776703160143,-868.969298,0.00039537,30]
[420896042,1776703160197,-489.124159,0.00039537,30]
[420896043,1776703160250,-868.969298,0.00039537,30]
[420896044,1776703160304,-489.124159,0.00039537,30]
[420896045,1776703160356,-868.969298,0.00039537,30]
[420896046,1776703160445,-4458.15368137,0.000397,120]
[420896047,1776703160498,-228.0,0.00039726,30]
[420896048,1776703160553,-500.0,0.00039747,53]
[420896049,1776703160607,-260.0,0.00039856,66]
[420896050,1776703160663,-166.0,0.00039965,120]
[420896051,1776703160721,-179.09439278,0.00040034,30]
[420896052,1776703160774,-179.09439278,0.00040044,120]
[420896053,1776703160826,-650.0,0.00040097,30]
[420896054,1776703160880,-260.0,0.0004028,73]
[420896055,1776703160934,-1000.32355458,0.00040411,30]
[420896056,1776703160986,-498.96,0.00040477,120]
[420896057,1776703161039,-349.0,0.000405,120]
[420896058,1776703161090,-420.0,0.000405,120]
[420896059,1776703161141,-420.0,0.000405,120]
[420896060,1776703161191,-349.0,0.0004059,120]
[420896061,1776703161242,-349.0,0.0004059,120]
[420896062,1776703161293,-420.0,0.0004059,120]
[420896063,1776703161345,-260.0,0.00040654,80]
[420896064,1776703161395,-500.0,0.0004094,59]
[420896065,1776703161447,-170145.0,0.0004095,60]
[420896066,1776703161500,-260.0,0.00040984,87]
[420896067,1776703161556,-100000.0,0.00041,31]
[420896068,1776703161610,-500.0,0.00041,45]
[420896069,1776703161665,-500.0,0.00041,45]
[420896070,1776703161720,-500.0,0.00041,45]
[420896071,1776703161774,-500.0,0.00041,45]
[420896072,1776703161828,-500.0,0.00041,45]
[420896073,1776703161879,-349.0,0.00041,120]
[420896074,1776703161930,-420.0,0.00041,120]
[420896075,1776703161985,-1102.2,0.00041041,30]
[420896076,1776703162042,-1159.1,0.00041095,120]
[420896077,1776703162099,-1000.0,0.00041095,30]
[420896078,1776703162155,-1000.0,0.00041095,30]
[420896079,1776703162213,-1000.0,0.00041095,30]
[420896080,1776703162271,-1000.0,0.00041095,30]
[420896081,1776703162328,-1000.0,0.00041095,30]
[420896082,1776703162387,-1000.0,0.00041095,30]
[420896083,1776703162445,-1000.0,0.00041095,30]
[420896084,1776703162508,-1000.0,0.00041095,30]
[420896085,1776703162567,-1000.0,0.00041095,30]
[420896086,1776703162626,-1000.0,0.00041095,30]
[420896087,1776703162686,-1000.0,0.00041095,30]
[420896088,1776703162744,-1000.0,0.00041095,30]
[420896089,1776703162802,-1000.0,0.00041095,30]
[420896090,1776703162859,-1000.0,0.00041095,30]
[420896091,1776703162914,-1000.0,0.00041095,30]
[420896092,1776703162974,-1000.0,0.00041095,30]
[420896093,1776703163033,-1000.0,0.00041095,30]
[420896094,1776703163090,-1000.0,0.00041095,30]
[420896095,1776703163145,-1000.0,0.00041095,30]
[420896096,1776703163201,-1000.0,0.00041095,30]
[420896097,1776703163677,-1000.0,0.00041095,30]
[420896098,1776703163734,-1000.0,0.00041095,30]
[420896099,1776703163786,-1000.0,0.00041095,30]
[420896100,1776703163841,-1000.0,0.00041095,30]
[420896101,1776703163896,-1000.0,0.00041095,30]
[420896102,1776703163952,-3435.0,0.00041096,120]
[420896103,1776703164007,-3435.0,0.00041096,120]
[420896104,1776703164063,-3435.0,0.00041096,120]
[420896105,1776703164122,-3435.0,0.00041096,120]
[420896106,1776703164176,-3435.0,0.00041096,120]
[420896107,1776703164230,-3435.0,0.00041096,120]
[420896108,1776703164284,-3435.0,0.00041096,120]
[420896109,1776703164338,-3435.0,0.00041096,120]
[420896110,1776703164392,-3435.0,0.00041096,120]
[420896111,1776703164447,-3435.0,0.00041096,120]
[420896112,1776703164504,-3435.0,0.00041096,120]
[420896113,1776703164560,-3435.0,0.00041096,120]
[420896114,1776703164616,-3435.0,0.00041096,120]
[420896115,1776703164674,-3435.0,0.00041096,120]
[420896116,1776703164732,-3435.0,0.00041096,120]
[420896117,1776703164790,-3435.0,0.00041096,120]
[420896118,1776703164848,-3435.0,0.00041096,120]
[420896119,1776703164906,-3435.0,0.00041096,120]
[420896120,1776703164963,-3435.0,0.00041096,120]
[420896121,1776703165020,-3435.0,0.00041096,120]
[420896122,1776703165076,-3435.0,0.00041096,120]
[420896123,1776703165133,-3435.0,0.00041096,120]
[420896124,1776703165187,-3435.0,0.00041096,120]
[420896125,1776703165242,-3451.5744376,0.00041096,120]
[420896126,1776703165297,-422.0,0.00041096,60]
[420896127,1776703165352,-422.0,0.00041096,60]
[420896128,1776703165408,-422.0,0.00041096,60]
[420896129,1776703165466,-422.0,0.00041096,60]
[420896130,1776703165523,-422.0,0.00041096,60]
[420896131,1776703165581,-422.0,0.00041096,60]
[420896132,1776703165638,-422.0,0.00041096,60]
[420896133,1776703165695,-422.0,0.00041096,60]
[420896134,1776703165753,-422.0,0.00041096,60]
[420896135,1776703165810,-422.0,0.00041096,60]
[420896136,1776703165869,-422.0,0.00041096,60]
[420896137,1776703165926,-422.0,0.00041096,60]
[420896138,1776703165984,-422.0,0.00041096,60]
[420896139,1776703166043,-422.0,0.00041096,60]
[420896140,1776703166099,-422.0,0.00041096,60]
[420896141,1776703166156,-422.0,0.00041096,60]
[420896142,1776703166215,-422.0,0.00041096,60]
[420896143,1776703166273,-422.0,0.00041096,60]
[420896144,1776703166328,-422.0,0.00041096,60]
[420896145,1776703166386,-422.0,0.00041096,60]
[420896146,1776703166442,-422.0,0.00041096,60]
[420896147,1776703166499,-422.0,0.00041096,60]
[420896148,1776703166557,-422.0,0.00041096,60]
[420896149,1776703166614,-431.81554246,0.00041096,60]
[420896150,1776703166673,-612.0,0.00041096,120]
[420896151,1776703166730,-612.0,0.00041096,120]
[420896152,1776703166786,-612.0,0.00041096,120]
[420896153,1776703166842,-612.0,0.00041096,120]
[420896154,1776703166899,-612.0,0.00041096,120]
[420896155,1776703166956,-612.0,0.00041096,120]
[420896156,1776703167012,-612.0,0.00041096,120]
[420896157,1776703167068,-612.0,0.00041096,120]
[420896158,1776703167124,-612.0,0.00041096,120]
[420896159,1776703167179,-612.0,0.00041096,120]
[420896160,1776703167235,-612.0,0.00041096,120]
[420896161,1776703167291,-612.0,0.00041096,120]
[420896162,1776703167347,-612.0,0.00041096,120]
[420896163,1776703167403,-612.0,0.00041096,120]
[420896164,1776703167461,-612.0,0.00041096,120]
[420896165,1776703167522,-612.0,0.00041096,120]
[420896166,1776703167579,-612.0,0.00041096,120]
[420896167,1776703167637,-612.0,0.00041096,120]
[420896168,1776703167698,-612.0,0.00041096,120]
[420896169,1776703167756,-612.0,0.00041096,120]
[420896170,1776703167812,-612.0,0.00041096,120]
[420896171,1776703167869,-612.0,0.00041096,120]
[420896172,1776703167928,-612.0,0.00041096,120]
[420896173,1776703167983,-627.70217458,0.00041096,120]
[420896174,1776703168041,-10088.55595036,0.00041207,97]
[420896175,1776703168099,-260.0,0.00041277,90]
[420896176,1776703168157,-258.52,0.00041325,30]
[420896177,1776703168214,-1159.1,0.00041369,120]
[420896179,1776703168276,-164.0,0.00041369,30]
[420896180,1776703168336,-695.39793187,0.00041499,45]
[420896182,1776703168394,-200.0,0.00041499,45]
[420896183,1776703168451,-151.0,0.00041499,45]
[420896185,1776703168508,-1377.42282659,0.00041499,45]
[420896186,1776703168564,-201.93286098,0.00041499,45]
[420896187,1776703168621,-500.0,0.00041499,45]
[420896188,1776703168680,-500.0,0.00041499,45]
[420896189,1776703168738,-9211.34798986,0.00041499,45]
[420896190,1776703168794,-201.93286099,0.00041499,45]
[420896191,1776703168852,-151.0,0.00041499,45]
[420896192,1776703168911,-2000.0,0.00041499,45]
[420896193,1776703168970,-1000.0,0.00041499,45]
[420896194,1776703169027,-1001.9819122,0.00041499,50]
[420896195,1776703169088,-225.60716926,0.00041499,45]
[420896196,1776703169147,-227.34163158,0.00041499,45]
[420896197,1776703169203,-201.53159052,0.00041499,45]
[420896198,1776703169260,-500.0,0.000415,45]
[420896199,1776703169315,-500.0,0.000415,45]
[420896200,1776703169369,-500.0,0.000415,45]
[420896201,1776703169425,-500.0,0.000415,45]
[420896202,1776703169479,-181.20787317,0.000415,45]
[420896203,1776703169532,-349.0,0.000415,120]
[420896204,1776703169913,-420.0,0.000415,120]
[420896205,1776703169968,-670.58624095,0.00041531,30]
[420896206,1776703170023,-200.0,0.00041531,30]
[420896207,1776703170078,-151.0,0.00041531,30]
[420896208,1776703170133,-1328.27659266,0.00041531,30]
[420896209,1776703170187,-194.72792766,0.00041531,30]
[420896210,1776703170242,-500.0,0.00041531,30]
[420896211,1776703170298,-500.0,0.00041531,30]
[420896212,1776703170352,-8882.6885148,0.00041531,30]
[420896213,1776703170406,-334.31473692,0.00041531,30]
[420896214,1776703170459,-194.72792766,0.00041531,30]
[420896215,1776703170513,-151.0,0.00041531,30]
[420896216,1776703170568,-2000.0,0.00041531,30]
[420896217,1776703170623,-1000.0,0.00041531,30]
[420896218,1776703170677,-257.91778498,0.00041531,30]
[420896219,1776703170732,-152.0,0.00041531,30]
[420896220,1776703170785,-219.23011724,0.00041531,30]
[420896221,1776703170839,-194.72792766,0.00041531,30]
[420896223,1776703170893,-260.0,0.00041535,91]
[420896224,1776703170946,-9904.1928,0.00041544,30]
[420896226,1776703171000,-1500.0,0.00041582,120]
[420896227,1776703171053,-800.0,0.00041582,120]
[420896228,1776703171106,-646.65982734,0.00041599,120]
[420896230,1776703171158,-200.0,0.00041599,120]
[420896231,1776703171213,-151.0,0.00041599,120]
[420896233,1776703171266,-1280.88388878,0.00041599,120]
[420896234,1776703171320,-187.78006525,0.00041599,120]
[420896236,1776703171374,-500.0,0.00041599,120]
[420896237,1776703171428,-500.0,0.00041599,120]
[420896238,1776703171483,-8565.75555911,0.00041599,120]
[420896241,1776703171536,-220.0,0.00041599,120]
[420896243,1776703171591,-187.78006525,0.00041599,120]
[420896244,1776703171647,-151.0,0.00041599,120]
[420896245,1776703171702,-2000.0,0.00041599,120]
[420896246,1776703171756,-1000.0,0.00041599,120]
[420896247,1776703171810,-160.6115564,0.00041599,120]
[420896248,1776703171865,-621.78829552,0.00041599,120]
[420896249,1776703171918,-248.71531821,0.00041599,120]
[420896250,1776703171971,-152.0,0.00041599,120]
[420896251,1776703172023,-188.85432576,0.00041599,120]
[420896252,1776703172073,-211.40802048,0.00041599,120]
[420896253,1776703172126,-187.78006525,0.00041599,120]
[420896254,1776703172178,-151.0,0.00041599,120]
[420896255,1776703172232,-1159.1,0.00041643,120]
[420896256,1776703172285,-179.09439278,0.00041678,30]
[420896257,1776703172337,-179.09439278,0.00041688,120]
[420896258,1776703172390,-10172.0,0.000417,117]
[420896259,1776703172442,-5339.20525,0.0004176,30]
[420896260,1776703172495,-260.0,0.00041764,92]
[420896261,1776703172551,-150.0,0.00041845,120]
[420896262,1776703172605,-500.0,0.00041856,120]
[420896263,1776703172660,-1159.1,0.00041917,120]
[420896264,1776703172714,-803.0,0.00041918,120]
[420896265,1776703172768,-803.0,0.00041918,120]
[420896266,1776703172824,-803.0,0.00041918,120]
[420896267,1776703172877,-803.0,0.00041918,120]
[420896268,1776703172931,-803.0,0.00041918,120]
[420896269,1776703172986,-803.0,0.00041918,120]
[420896270,1776703173040,-803.0,0.00041918,120]
[420896271,1776703173094,-803.0,0.00041918,120]
[420896272,1776703173147,-803.0,0.00041918,120]
[420896273,1776703173202,-803.0,0.00041918,120]
[420896274,1776703173260,-803.0,0.00041918,120]
[420896275,1776703173315,-803.0,0.00041918,120]
[420896276,1776703173369,-803.0,0.00041918,120]
[420896277,1776703173423,-803.0,0.00041918,120]
[420896278,1776703173478,-803.0,0.00041918,120]
[420896279,1776703173534,-803.0,0.00041918,120]
[420896280,1776703173590,-803.0,0.00041918,120]
[420896281,1776703173646,-803.0,0.00041918,120]
[420896282,1776703173703,-803.0,0.00041918,120]
[420896283,1776703173758,-803.0,0.00041918,120]
[420896284,1776703173811,-803.0,0.00041918,120]
[420896285,1776703173866,-803.0,0.00041918,120]
[420896286,1776703173921,-803.0,0.00041918,120]
[420896287,1776703173974,-803.0,0.00041918,120]
[420896288,1776703174029,-803.0,0.00041918,120]
[420896289,1776703174083,-803.0,0.00041918,120]
[420896290,1776703174138,-803.0,0.00041918,120]
[420896291,1776703174192,-803.0,0.00041918,120]
[420896292,1776703174247,-803.0,0.00041918,120]
[420896293,1776703174302,-803.0,0.00041918,120]
[420896294,1776703174355,-803.0,0.00041918,120]
[420896295,1776703174408,-803.0,0.00041918,120]
[420896296,1776703174463,-803.0,0.00041918,120]
[420896297,1776703174520,-803.0,0.00041918,120]
[420896298,1776703174581,-803.0,0.00041918,120]
[420896299,1776703174638,-803.0,0.00041918,120]
[420896300,1776703174694,-803.0,0.00041918,120]
[420896301,1776703174749,-803.0,0.00041918,120]
[420896302,1776703174805,-803.0,0.00041918,120]
[420896303,1776703174863,-803.0,0.00041918,120]
[420896304,1776703174919,-803.0,0.00041918,120]
[420896305,1776703174976,-803.0,0.00041918,120]
[420896306,1776703175030,-803.0,0.00041918,120]
[420896307,1776703175083,-803.0,0.00041918,120]
[420896308,1776703175136,-803.0,0.00041918,120]
[420896309,1776703175190,-803.0,0.00041918,120]
[420896310,1776703175246,-803.0,0.00041918,120]
[420896311,1776703175301,-803.0,0.00041918,120]
[420896312,1776703175354,-803.0,0.00041918,120]
[420896313,1776703175408,-803.0,0.00041918,120]
[420896314,1776703175460,-803.0,0.00041918,120]
[420896315,1776703175808,-803.0,0.00041918,120]
[420896316,1776703175868,-803.0,0.00041918,120]
[420896317,1776703175924,-803.0,0.00041918,120]
[420896318,1776703175982,-803.0,0.00041918,120]
[420896319,1776703176039,-803.0,0.00041918,120]
[420896320,1776703176095,-803.0,0.00041918,120]
[420896321,1776703176150,-803.0,0.00041918,120]
[420896322,1776703176205,-803.0,0.00041918,120]
[420896323,1776703176262,-803.0,0.00041918,120]
[420896324,1776703176315,-803.0,0.00041918,120]
[420896325,1776703176368,-803.0,0.00041918,120]
[420896326,1776703176422,-803.0,0.00041918,120]
[420896327,1776703176476,-803.0,0.00041918,120]
[420896328,1776703176529,-803.0,0.00041918,120]
[420896329,1776703176582,-803.0,0.00041918,120]
[420896330,1776703176636,-803.0,0.00041918,120]
[420896331,1776703176690,-803.0,0.00041918,120]
[420896332,1776703176742,-803.0,0.00041918,120]
[420896333,1776703176795,-803.0,0.00041918,120]
[420896334,1776703176852,-803.0,0.00041918,120]
[420896335,1776703176907,-803.0,0.00041918,120]
[420896336,1776703176962,-803.0,0.00041918,120]
[420896337,1776703177018,-803.0,0.00041918,120]
[420896338,1776703177077,-803.0,0.00041918,120]
[420896339,1776703177133,-803.0,0.00041918,120]
[420896340,1776703177190,-803.0,0.00041918,120]
[420896341,1776703177247,-803.0,0.00041918,120]
[420896342,1776703177304,-803.0,0.00041918,120]
[420896343,1776703177360,-803.0,0.00041918,120]
[420896344,1776703177416,-803.0,0.00041918,120]
[420896345,1776703177472,-803.0,0.00041918,120]
[420896346,1776703177529,-803.0,0.00041918,120]
[420896347,1776703177585,-803.0,0.00041918,120]
[420896348,1776703177642,-803.0,0.00041918,120]
[420896349,1776703177699,-803.0,0.00041918,120]
[420896350,1776703177753,-803.0,0.00041918,120]
[420896351,1776703177811,-803.0,0.00041918,120]
[420896352,1776703177871,-803.0,0.00041918,120]